[Event "MČR juniorů a juniorek v rapid šachu 2023"]
[Site "Czech Republic"]
[Date "2023.09.23"]
[Round "5.31"]
[White "Zadrapova, Gabriela"]
[Black "Nikolinko, Tomas"]
[Result "0-1"]
[TimeControl "20 min + 5 sec per move"]
[WhiteFideId "23753056"]
[BlackFideId "389749"]
[WhiteElo "1206"]
[BlackElo "1327"]

1. e4 {[%clk 00:20:05]} {[%emt 00:00:03]} c5 {[%clk 00:20:09]} {[%emt
00:00:02]} 2. Nf3 {[%clk 00:20:03]} {[%emt 00:00:07]} Nc6 {[%clk 00:20:12]}
{[%emt 00:00:03]} 3. Bc4 {[%clk 00:19:53]} {[%emt 00:00:14]} Nf6 {[%clk
00:20:09]} {[%emt 00:00:08]} 4. Nc3 {[%clk 00:19:55]} {[%emt 00:00:03]} a6
{[%clk 00:19:55]} {[%emt 00:00:21]} 5. a4 {[%clk 00:19:28]} {[%emt 00:00:31]}
d6 {[%clk 00:19:23]} {[%emt 00:00:37]} 6. Ng5 {[%clk 00:19:07]} {[%emt
00:00:25]} e6 {[%clk 00:19:22]} {[%emt 00:00:07]} 7. O-O {[%clk 00:18:45]}
{[%emt 00:00:26]} h6 {[%clk 00:19:19]} {[%emt 00:00:08]} 8. Nf3 {[%clk
00:18:43]} {[%emt 00:00:06]} Be7 {[%clk 00:19:13]} {[%emt 00:00:12]} 9. Re1
{[%clk 00:18:31]} {[%emt 00:00:16]} O-O {[%clk 00:19:13]} {[%emt 00:00:05]} 10.
d4 {[%clk 00:18:01]} {[%emt 00:00:35]} d5 {[%clk 00:18:41]} {[%emt 00:00:37]}
11. exd5 {[%clk 00:17:52]} {[%emt 00:00:14]} exd5 {[%clk 00:18:43]} {[%emt
00:00:03]} 12. Ba2 {[%clk 00:17:35]} {[%emt 00:00:22]} cxd4 {[%clk 00:18:13]}
{[%emt 00:00:35]} 13. Nxd4 {[%clk 00:17:32]} {[%emt 00:00:07]} Nxd4 {[%clk
00:17:58]} {[%emt 00:00:21]} 14. Qxd4 {[%clk 00:17:28]} {[%emt 00:00:09]} Be6
{[%clk 00:17:54]} {[%emt 00:00:09]} 15. Re3 {[%clk 00:16:58]} {[%emt 00:00:35]}
Rc8 {[%clk 00:17:02]} {[%emt 00:00:57]} 16. Qd1 {[%clk 00:15:50]} {[%emt
00:01:13]} d4 {[%clk 00:16:57]} {[%emt 00:00:10]} 17. Rd3 {[%clk 00:15:49]}
{[%emt 00:00:05]} Bc5 {[%clk 00:15:52]} {[%emt 00:01:11]} 18. Ne2 {[%clk
00:15:17]} {[%emt 00:00:37]} Bxa2 {[%clk 00:15:49]} {[%emt 00:00:08]} 19. Rxa2
{[%clk 00:15:20]} {[%emt 00:00:03]} Re8 {[%clk 00:15:24]} {[%emt 00:00:29]} 20.
Rg3 {[%clk 00:15:04]} {[%emt 00:00:20]} g5 {[%clk 00:15:16]} {[%emt 00:00:14]}
21. h4 {[%clk 00:15:00]} {[%emt 00:00:09]} Ne4 {[%clk 00:15:03]} {[%emt
00:00:18]} 22. Rg4 {[%clk 00:14:30]} {[%emt 00:00:33]} f5 {[%clk 00:15:04]}
{[%emt 00:00:07]} 23. Rxg5+ {[%clk 00:14:22]} {[%emt 00:00:12]} hxg5 {[%clk
00:15:04]} {[%emt 00:00:04]} 24. Bxg5 {[%clk 00:14:23]} {[%emt 00:00:04]} Nxg5
{[%clk 00:15:04]} {[%emt 00:00:06]} 25. hxg5 {[%clk 00:14:26]} {[%emt
00:00:02]} Qxg5 {[%clk 00:14:57]} {[%emt 00:00:12]} 26. Nxd4 {[%clk 00:14:22]}
{[%emt 00:00:09]} Bxd4 {[%clk 00:14:50]} {[%emt 00:00:12]} 27. Qxd4 {[%clk
00:14:24]} {[%emt 00:00:03]} Qc1+ {[%clk 00:14:49]} {[%emt 00:00:07]} 28. Kh2
{[%clk 00:14:23]} {[%emt 00:00:05]} Qh6+ {[%clk 00:14:48]} {[%emt 00:00:06]} 29.
Kg1 {[%clk 00:14:25]} {[%emt 00:00:03]} Re1# {[%emt 00:00:04]} 0-1

[Event "MČR juniorů a juniorek v rapid šachu 2023"]
[Site "Czech Republic"]
[Date "2023.09.23"]
[Round "5.34"]
[White "Martinkovicova, Nela"]
[Black "Hosova, Stella"]
[Result "1-0"]
[TimeControl "20 min + 5 sec per move"]
[WhiteFideId "23715596"]
[BlackFideId "23710489"]
[WhiteElo "1049"]
[BlackElo "1164"]

1. e4 {[%clk 00:20:05]} {[%emt 00:00:04]} c5 {[%clk 00:20:09]} {[%emt
00:00:02]} 2. Nc3 {[%clk 00:19:56]} {[%emt 00:00:13]} Nc6 {[%clk 00:20:10]}
{[%emt 00:00:04]} 3. Bc4 {[%clk 00:19:45]} {[%emt 00:00:16]} Nf6 {[%clk
00:20:06]} {[%emt 00:00:09]} 4. d3 {[%clk 00:19:36]} {[%emt 00:00:15]} g6
{[%clk 00:20:06]} {[%emt 00:00:05]} 5. Bg5 {[%clk 00:19:16]} {[%emt 00:00:24]}
Bg7 {[%clk 00:20:08]} {[%emt 00:00:03]} 6. Nf3 {[%clk 00:19:05]} {[%emt
00:00:17]} d6 {[%clk 00:19:58]} {[%emt 00:00:16]} 7. Qd2 {[%clk 00:18:27]}
{[%emt 00:00:42]} a6 {[%clk 00:19:20]} {[%emt 00:00:44]} 8. a3 {[%clk
00:18:12]} {[%emt 00:00:19]} b5 {[%clk 00:19:19]} {[%emt 00:00:05]} 9. Ba2
{[%clk 00:17:59]} {[%emt 00:00:18]} O-O {[%clk 00:18:45]} {[%emt 00:00:39]} 10.
Bh6 {[%clk 00:17:18]} {[%emt 00:00:47]} e5 {[%clk 00:17:52]} {[%emt 00:00:58]}
11. Bxg7 {[%clk 00:17:01]} {[%emt 00:00:21]} Kxg7 {[%clk 00:17:56]} {[%emt
00:00:02]} 12. Ng5 {[%clk 00:15:58]} {[%emt 00:01:08]} Ng4 {[%clk 00:17:27]}
{[%emt 00:00:34]} 13. f3 {[%clk 00:14:44]} {[%emt 00:01:19]} Nh6 {[%clk
00:16:52]} {[%emt 00:00:39]} 14. f4 {[%clk 00:13:19]} {[%emt 00:01:30]} Qe7
{[%clk 00:15:49]} {[%emt 00:01:08]} 15. Nd5 {[%clk 00:12:43]} {[%emt 00:00:42]}
Qd8 {[%clk 00:15:16]} {[%emt 00:00:37]} 16. O-O {[%clk 00:11:48]} {[%emt
00:01:00]} f6 {[%clk 00:14:58]} {[%emt 00:00:22]} 17. Nh3 {[%clk 00:08:40]}
{[%emt 00:03:13]} Bxh3 {[%clk 00:14:29]} {[%emt 00:00:35]} 18. gxh3 {[%clk
00:08:29]} {[%emt 00:00:17]} Nd4 {[%clk 00:14:16]} {[%emt 00:00:18]} 19. c3
{[%clk 00:06:56]} {[%emt 00:01:37]} Ne6 {[%clk 00:14:12]} {[%emt 00:00:10]} 20.
f5 {[%clk 00:06:30]} {[%emt 00:00:31]} Ng5 {[%clk 00:13:57]} {[%emt 00:00:19]}
21. fxg6 {[%clk 00:06:01]} {[%emt 00:00:34]} f5 {[%clk 00:13:04]} {[%emt
00:00:59]} 22. gxh7 {[%clk 00:05:00]} {[%emt 00:01:06]} Kxh7 {[%clk 00:13:04]}
{[%emt 00:00:05]} 23. exf5 {[%clk 00:04:38]} {[%emt 00:00:28]} Nxh3+ {[%clk
00:12:12]} {[%emt 00:00:56]} 24. Kh1 {[%clk 00:03:05]} {[%emt 00:01:38]} Qh4
{[%clk 00:10:48]} {[%emt 00:01:28]} 25. Rf3 {[%clk 00:01:21]} {[%emt 00:01:47]}
Rg8 {[%clk 00:09:12]} {[%emt 00:01:43]} 26. Nf6+ {[%clk 00:01:08]} {[%emt
00:00:19]} Kh8 {[%clk 00:08:37]} {[%emt 00:00:40]} 27. Nxg8 {[%clk 00:00:55]}
{[%emt 00:00:18]} Nxg8 {[%clk 00:08:41]} {[%emt 00:00:01]} 28. Qe3 {[%clk
00:00:39]} {[%emt 00:00:21]} Ng5 {[%clk 00:08:26]} {[%emt 00:00:19]} 29. Rg3
{[%clk 00:00:32]} {[%emt 00:00:12]} Nh7 {[%clk 00:08:11]} {[%emt 00:00:18]} 30.
Rxg8+ {[%clk 00:00:21]} {[%emt 00:00:18]} Rxg8 {[%clk 00:08:09]} {[%emt
00:00:07]} 31. Bxg8 {[%clk 00:00:24]} {[%emt 00:00:03]} Kxg8 {[%clk 00:08:12]}
{[%emt 00:00:02]} 32. Rg1+ {[%clk 00:00:24]} {[%emt 00:00:04]} Kh8 {[%clk
00:07:48]} {[%emt 00:00:29]} 33. Qg3 {[%clk 00:00:15]} {[%emt 00:00:15]} Qg5
{[%clk 00:07:18]} {[%emt 00:00:35]} 34. Qxg5 {[%clk 00:00:15]} {[%emt
00:00:04]} Nxg5 {[%clk 00:07:22]} {[%emt 00:00:02]} 35. Rxg5 {[%clk 00:00:18]}
{[%emt 00:00:02]} Kh7 {[%clk 00:07:24]} {[%emt 00:00:02]} 36. f6 {[%clk
00:00:22]} Kh6 {[%clk 00:07:26]} {[%emt 00:00:05]} 37. Rg3 {[%clk 00:00:26]}
{[%emt 00:00:01]} Kh5 {[%clk 00:07:27]} {[%emt 00:00:03]} 38. f7 {[%clk
00:00:29]} {[%emt 00:00:01]} 1-0

[Event "MČR juniorů a juniorek v rapid šachu 2023"]
[Site "Czech Republic"]
[Date "2023.09.23"]
[Round "6.1"]
[White "Hlavina, Matous"]
[Black "Ocelak, Jakub"]
[Result "1/2-1/2"]
[TimeControl "20 min + 5 sec per move"]
[WhiteFideId "386650"]
[BlackFideId "23707933"]
[WhiteElo "2005"]
[BlackElo "2025"]

1. e4 {[%clk 00:19:52]} {[%emt 00:00:17]} e5 {[%clk 00:19:57]} {[%emt
00:00:05]} 2. Nf3 {[%clk 00:19:46]} {[%emt 00:00:19]} Nc6 {[%clk 00:19:59]}
{[%emt 00:00:02]} 3. Bb5 {[%clk 00:19:45]} {[%emt 00:00:07]} a6 {[%clk
00:18:49]} {[%emt 00:01:14]} 4. Bxc6 {[%clk 00:19:37]} {[%emt 00:00:14]} dxc6
{[%clk 00:18:52]} {[%emt 00:00:02]} 5. O-O {[%clk 00:19:21]} {[%emt 00:00:20]}
Bg4 {[%clk 00:18:53]} {[%emt 00:00:05]} 6. h3 {[%clk 00:19:11]} {[%emt
00:00:15]} h5 {[%clk 00:18:56]} {[%emt 00:00:02]} 7. c3 {[%clk 00:18:14]}
{[%emt 00:01:02]} Qd3 {[%clk 00:13:23]} {[%emt 00:05:34]} 8. hxg4 {[%clk
00:15:50]} {[%emt 00:02:33]} hxg4 {[%clk 00:13:24]} {[%emt 00:00:04]} 9. Nxe5
{[%clk 00:15:20]} {[%emt 00:00:35]} Bd6 {[%emt 00:03:54]} 10. Nxd3 {[%clk
00:12:26]} {[%emt 00:00:04]} Bh2+ {[%clk 00:12:33]} {[%emt 00:00:02]} 11. Kh1
{[%clk 00:12:29]} {[%emt 00:00:02]} Bg3+ {[%clk 00:12:37]} 12. Kg1 {[%clk
00:12:28]} {[%emt 00:00:07]} Bh2+ {[%clk 00:12:40]} {[%emt 00:00:01]} 13. Kh1
{[%clk 00:12:32]} Bg3+ {[%emt 00:00:02]} 1/2-1/2

[Event "MČR juniorů a juniorek v rapid šachu 2023"]
[Site "Czech Republic"]
[Date "2023.09.23"]
[Round "6.2"]
[White "Bezdek, Tomas"]
[Black "Cibulka, Josef"]
[Result "1-0"]
[TimeControl "20 min + 5 sec per move"]
[WhiteFideId "23733551"]
[BlackFideId "23708042"]
[WhiteElo "1933"]
[BlackElo "1922"]

1. e4 {[%clk 00:20:08]} c5 {[%clk 00:20:07]} 2. Nf3 {[%clk 00:20:12]} {[%emt
00:00:05]} Nc6 {[%clk 00:20:11]} 3. Bb5 {[%clk 00:20:16]} {[%emt 00:00:03]} e6
{[%clk 00:20:13]} 4. O-O {[%clk 00:20:17]} {[%emt 00:00:05]} Nge7 {[%clk
00:20:14]} 5. c3 {[%clk 00:20:14]} {[%emt 00:00:13]} a6 {[%clk 00:20:16]}
{[%emt 00:00:03]} 6. Bd3 {[%clk 00:20:18]} g6 {[%clk 00:20:13]} {[%emt
00:00:07]} 7. Bc2 {[%clk 00:20:20]} {[%emt 00:00:04]} Bg7 {[%clk 00:20:16]}
{[%emt 00:00:02]} 8. d4 {[%clk 00:20:24]} cxd4 {[%clk 00:20:17]} {[%emt
00:00:05]} 9. cxd4 {[%clk 00:20:28]} {[%emt 00:00:01]} d5 {[%clk 00:20:18]}
{[%emt 00:00:04]} 10. e5 {[%clk 00:20:11]} {[%emt 00:00:22]} O-O {[%clk
00:20:04]} {[%emt 00:00:18]} 11. Nc3 {[%clk 00:20:04]} {[%emt 00:00:13]} b5
{[%clk 00:20:00]} {[%emt 00:00:09]} 12. a3 {[%clk 00:20:06]} {[%emt 00:00:03]}
b4 {[%clk 00:19:36]} {[%emt 00:00:29]} 13. Na4 {[%clk 00:19:43]} {[%emt
00:00:28]} a5 {[%clk 00:19:15]} {[%emt 00:00:26]} 14. Bd2 {[%clk 00:18:12]}
{[%emt 00:01:37]} Ba6 {[%clk 00:18:08]} {[%emt 00:01:12]} 15. Re1 {[%clk
00:18:14]} {[%emt 00:00:02]} Nf5 {[%clk 00:17:50]} {[%emt 00:00:23]} 16. Bxf5
{[%clk 00:17:19]} {[%emt 00:01:00]} gxf5 {[%clk 00:17:52]} {[%emt 00:00:03]} 17.
Qc1 {[%clk 00:16:29]} {[%emt 00:00:56]} Rc8 {[%clk 00:14:40]} {[%emt 00:03:17]}
18. Nc5 {[%clk 00:15:27]} {[%emt 00:01:06]} Nb8 {[%clk 00:10:09]} {[%emt
00:04:36]} 19. Bg5 {[%clk 00:14:51]} {[%emt 00:00:41]} Qb6 {[%clk 00:07:23]}
{[%emt 00:02:52]} 20. Bf6 {[%clk 00:14:23]} {[%emt 00:00:32]} h6 {[%clk
00:06:43]} {[%emt 00:00:46]} 21. Qf4 {[%clk 00:12:52]} {[%emt 00:01:36]} Kh7
{[%clk 00:06:08]} {[%emt 00:00:39]} 22. Qh4 {[%clk 00:12:30]} {[%emt 00:00:27]}
Bb5 {[%clk 00:02:29]} {[%emt 00:03:44]} 23. Bxg7 {[%clk 00:10:00]} {[%emt
00:02:34]} Kxg7 {[%clk 00:02:33]} {[%emt 00:00:02]} 24. Qf6+ {[%clk 00:10:04]}
Kh7 {[%clk 00:02:25]} {[%emt 00:00:13]} 25. Re3 {[%clk 00:10:08]} Rg8 {[%clk
00:00:40]} {[%emt 00:01:51]} 26. Qxf7+ {[%clk 00:09:49]} {[%emt 00:00:24]} Rg7
{[%clk 00:00:38]} {[%emt 00:00:07]} 27. Qxe6 {[%clk 00:09:50]} {[%emt
00:00:04]} Qxe6 {[%clk 00:00:27]} {[%emt 00:00:16]} 28. Nxe6 {[%clk 00:09:53]}
{[%emt 00:00:03]} Re7 {[%clk 00:00:15]} {[%emt 00:00:18]} 29. Nc5 {[%clk
00:09:38]} {[%emt 00:00:20]} Nd7 {[%clk 00:00:15]} {[%emt 00:00:04]} 30. axb4
{[%clk 00:09:31]} {[%emt 00:00:12]} axb4 {[%clk 00:00:18]} {[%emt 00:00:02]} 31.
Ra7 {[%clk 00:09:05]} {[%emt 00:00:31]} Rg7 {[%clk 00:00:18]} {[%emt 00:00:05]}
32. Nxd7 {[%clk 00:08:02]} {[%emt 00:01:08]} Bxd7 {[%clk 00:00:13]} {[%emt
00:00:10]} 33. e6 {[%clk 00:07:49]} {[%emt 00:00:17]} Rc1+ {[%clk 00:00:13]}
{[%emt 00:00:06]} 34. Re1 {[%clk 00:07:51]} {[%emt 00:00:03]} Rxe1+ {[%clk
00:00:14]} {[%emt 00:00:05]} 35. Nxe1 {[%clk 00:07:55]} Bxe6 {[%clk 00:00:17]}
{[%emt 00:00:02]} 36. Rxg7+ {[%clk 00:07:58]} {[%emt 00:00:02]} Kxg7 {[%clk
00:00:21]} {[%emt 00:00:02]} 37. Nd3 {[%clk 00:08:02]} Kf6 {[%clk 00:00:10]}
{[%emt 00:00:16]} 38. Nxb4 {[%clk 00:08:01]} {[%emt 00:00:06]} Ke7 {[%clk
00:00:14]} {[%emt 00:00:02]} 39. Kf1 {[%clk 00:07:47]} {[%emt 00:00:18]} Kd6
{[%clk 00:00:17]} {[%emt 00:00:02]} 40. Ke1 {[%clk 00:07:49]} {[%emt 00:00:03]}
Kc7 {[%clk 00:00:19]} {[%emt 00:00:03]} 41. Kd2 {[%clk 00:07:48]} {[%emt
00:00:06]} Kb6 {[%clk 00:00:23]} {[%emt 00:00:02]} 42. Nd3 {[%clk 00:07:18]}
{[%emt 00:00:34]} Kb5 {[%clk 00:00:26]} {[%emt 00:00:03]} 43. b3 {[%clk
00:07:09]} {[%emt 00:00:13]} Bf7 {[%clk 00:00:16]} {[%emt 00:00:15]} 44. Ke3
{[%clk 00:07:05]} {[%emt 00:00:08]} Bh5 {[%clk 00:00:18]} {[%emt 00:00:04]} 45.
f3 {[%clk 00:06:56]} {[%emt 00:00:14]} Bg6 {[%clk 00:00:08]} {[%emt 00:00:15]}
46. Kf4 {[%clk 00:06:57]} {[%emt 00:00:04]} Bh7 {[%clk 00:00:09]} {[%emt
00:00:04]} 47. Ke5 {[%clk 00:06:52]} {[%emt 00:00:10]} f4 {[%clk 00:00:09]}
{[%emt 00:00:05]} 48. Nxf4 {[%clk 00:06:54]} {[%emt 00:00:03]} Kb4 {[%clk
00:00:12]} {[%emt 00:00:02]} 49. Nxd5+ {[%clk 00:06:56]} {[%emt 00:00:03]} Kxb3
{[%clk 00:00:15]} {[%emt 00:00:02]} 50. Nf6 {[%clk 00:06:59]} {[%emt 00:00:02]}
Bg6 {[%clk 00:00:10]} {[%emt 00:00:10]} 51. d5 {[%clk 00:07:00]} {[%emt
00:00:03]} 1-0

[Event "MČR juniorů a juniorek v rapid šachu 2023"]
[Site "Czech Republic"]
[Date "2023.09.23"]
[Round "6.3"]
[White "Sulc, Jakub"]
[Black "Hurtik, Matej"]
[Result "0-1"]
[TimeControl "20 min + 5 sec per move"]
[WhiteFideId "394050"]
[BlackFideId "397997"]
[WhiteElo "1920"]
[BlackElo "1930"]

1. c4 {[%clk 00:20:07]} {[%emt 00:00:02]} e5 {[%clk 00:20:04]} {[%emt
00:00:06]} 2. Nc3 {[%clk 00:20:10]} {[%emt 00:00:03]} Nf6 {[%clk 00:20:06]}
{[%emt 00:00:02]} 3. g3 {[%clk 00:20:14]} {[%emt 00:00:02]} d5 {[%clk
00:20:08]} {[%emt 00:00:03]} 4. cxd5 {[%clk 00:20:16]} {[%emt 00:00:02]} Nxd5
{[%clk 00:20:11]} {[%emt 00:00:02]} 5. Bg2 {[%clk 00:20:20]} Nb6 {[%clk
00:20:16]} 6. Nf3 {[%clk 00:20:24]} {[%emt 00:00:02]} Nc6 {[%clk 00:20:18]} 7.
O-O {[%clk 00:20:26]} {[%emt 00:00:04]} Be7 {[%clk 00:20:17]} {[%emt 00:00:01]}
8. a3 {[%clk 00:20:06]} {[%emt 00:00:30]} O-O {[%clk 00:20:17]} {[%emt
00:00:05]} 9. b4 {[%clk 00:20:07]} {[%emt 00:00:04]} Re8 {[%clk 00:19:55]}
{[%emt 00:00:27]} 10. d3 {[%clk 00:19:12]} {[%emt 00:01:00]} a5 {[%clk
00:18:08]} {[%emt 00:01:52]} 11. b5 {[%clk 00:18:53]} {[%emt 00:00:24]} Nd4
{[%clk 00:18:12]} {[%emt 00:00:01]} 12. e3 {[%clk 00:18:33]} {[%emt 00:00:26]}
Nxf3+ {[%clk 00:17:21]} {[%emt 00:00:55]} 13. Bxf3 {[%clk 00:18:35]} {[%emt
00:00:03]} Ra7 {[%clk 00:13:51]} {[%emt 00:03:36]} 14. Qc2 {[%clk 00:17:22]}
{[%emt 00:01:17]} a4 {[%clk 00:13:28]} {[%emt 00:00:27]} 15. Rd1 {[%clk
00:16:35]} {[%emt 00:00:53]} Be6 {[%clk 00:13:31]} {[%emt 00:00:02]} 16. Qe2
{[%clk 00:13:59]} {[%emt 00:02:41]} Bb3 {[%clk 00:12:59]} {[%emt 00:00:36]} 17.
Rd2 {[%clk 00:14:03]} {[%emt 00:00:02]} f5 {[%clk 00:11:25]} {[%emt 00:01:39]}
18. Bg2 {[%clk 00:13:07]} {[%emt 00:01:01]} Bd6 {[%clk 00:10:34]} {[%emt
00:00:56]} 19. e4 {[%clk 00:12:45]} {[%emt 00:00:28]} f4 {[%clk 00:09:56]}
{[%emt 00:00:42]} 20. d4 {[%clk 00:12:35]} {[%emt 00:00:15]} exd4 {[%clk
00:08:02]} {[%emt 00:02:00]} 21. Rxd4 {[%clk 00:12:37]} {[%emt 00:00:02]} Qf6
{[%clk 00:08:06]} {[%emt 00:00:01]} 22. e5 {[%clk 00:11:13]} {[%emt 00:01:30]}
Rxe5 {[%clk 00:08:06]} {[%emt 00:00:04]} 23. Ne4 {[%clk 00:10:05]} {[%emt
00:01:13]} Rxe4 {[%clk 00:04:49]} {[%emt 00:03:23]} 24. Qxe4 {[%clk 00:09:34]}
{[%emt 00:00:36]} fxg3 {[%clk 00:04:50]} {[%emt 00:00:02]} 25. Qe8+ {[%clk
00:03:24]} {[%emt 00:06:16]} Bf8 {[%clk 00:04:53]} {[%emt 00:00:02]} 26. Rf4
{[%clk 00:03:28]} gxh2+ {[%clk 00:03:53]} {[%emt 00:01:05]} 27. Kh1 {[%clk
00:02:46]} {[%emt 00:00:47]} Qd6 {[%clk 00:03:56]} {[%emt 00:00:02]} 28. Be3
{[%clk 00:00:38]} {[%emt 00:02:14]} Ra8 {[%clk 00:03:59]} {[%emt 00:00:02]} 29.
Rxf8+ {[%clk 00:00:41]} {[%emt 00:00:01]} Qxf8 {[%clk 00:03:58]} {[%emt
00:00:06]} 30. Qxf8+ {[%clk 00:00:45]} {[%emt 00:00:02]} Rxf8 {[%clk 00:03:51]}
{[%emt 00:00:11]} 31. Bxb7 {[%clk 00:00:25]} {[%emt 00:00:26]} Rf5 {[%clk
00:03:23]} {[%emt 00:00:33]} 32. Rc1 {[%clk 00:00:18]} {[%emt 00:00:11]} Nc4
{[%clk 00:03:14]} {[%emt 00:00:14]} 33. Be4 {[%clk 00:00:13]} {[%emt 00:00:10]}
Re5 {[%clk 00:03:04]} {[%emt 00:00:15]} 34. Bg2 {[%clk 00:00:08]} {[%emt
00:00:10]} Nxe3 {[%clk 00:00:44]} {[%emt 00:02:25]} 35. fxe3 {[%clk 00:00:12]}
Rxb5 {[%clk 00:00:48]} {[%emt 00:00:02]} 36. Rxc7 {[%clk 00:00:14]} {[%emt
00:00:03]} Re5 {[%clk 00:00:52]} 37. Rc3 {[%clk 00:00:12]} {[%emt 00:00:06]}
Kf7 {[%clk 00:00:53]} {[%emt 00:00:04]} 38. Kxh2 {[%clk 00:00:15]} {[%emt
00:00:02]} h5 {[%clk 00:00:17]} {[%emt 00:00:41]} 39. Kg3 {[%clk 00:00:09]}
{[%emt 00:00:12]} g5 {[%clk 00:00:09]} {[%emt 00:00:12]} 40. Bf3 {[%clk
00:00:07]} {[%emt 00:00:07]} g4 {[%clk 00:00:08]} {[%emt 00:00:06]} 41. Bc6
{[%clk 00:00:09]} {[%emt 00:00:04]} Kf6 {[%clk 00:00:08]} {[%emt 00:00:04]} 42.
Kh4 {[%clk 00:00:09]} {[%emt 00:00:05]} Re7 {[%clk 00:00:09]} {[%emt 00:00:05]}
43. e4 {[%clk 00:00:09]} {[%emt 00:00:05]} Ke5 {[%clk 00:00:09]} {[%emt
00:00:05]} 44. Ba8 {[%clk 00:00:08]} {[%emt 00:00:06]} Kf4 {[%clk 00:00:09]}
{[%emt 00:00:04]} 45. Rc5 {[%clk 00:00:10]} {[%emt 00:00:03]} Re5 {[%clk
00:00:08]} {[%emt 00:00:07]} 46. Rc8 {[%clk 00:00:08]} {[%emt 00:00:07]} Bc2
{[%clk 00:00:08]} {[%emt 00:00:04]} 47. Rf8+ {[%clk 00:00:11]} {[%emt
00:00:03]} Ke3 {[%clk 00:00:11]} 48. Rd8 {[%clk 00:00:09]} {[%emt 00:00:08]}
Bxe4 {[%clk 00:00:14]} {[%emt 00:00:02]} 49. Bxe4 {[%clk 00:00:12]} {[%emt
00:00:01]} Kxe4 {[%clk 00:00:18]} 50. Rb8 {[%clk 00:00:15]} {[%emt 00:00:02]}
Kf3 {[%clk 00:00:10]} {[%emt 00:00:13]} 51. Rb4 {[%clk 00:00:14]} {[%emt
00:00:07]} Re4 {[%clk 00:00:13]} {[%emt 00:00:02]} 52. Rb5 {[%clk 00:00:13]}
{[%emt 00:00:06]} g3+ {[%clk 00:00:16]} {[%emt 00:00:02]} 53. Kh3 {[%clk
00:00:16]} g2 {[%clk 00:00:11]} {[%emt 00:00:10]} 54. Rb1 {[%clk 00:00:20]}
{[%emt 00:00:02]} Rg4 {[%emt 00:00:34]} 0-1

[Event "MČR juniorů a juniorek v rapid šachu 2023"]
[Site "Czech Republic"]
[Date "2023.09.23"]
[Round "6.4"]
[White "Pressler, Tobias"]
[Black "Dobsa, Emma"]
[Result "1-0"]
[TimeControl "20 min + 5 sec per move"]
[WhiteFideId "23715359"]
[BlackFideId "23709391"]
[WhiteElo "1859"]
[BlackElo "1480"]

1. e4 {[%clk 00:20:09]} {[%emt 00:00:01]} e5 {[%clk 00:20:09]} 2. Nf3 {[%clk
00:20:11]} {[%emt 00:00:03]} Nc6 {[%clk 00:20:13]} {[%emt 00:00:01]} 3. d4
{[%clk 00:20:15]} exd4 {[%clk 00:20:17]} {[%emt 00:00:03]} 4. Nxd4 {[%clk
00:20:19]} Nf6 {[%clk 00:20:20]} {[%emt 00:00:01]} 5. Nxc6 {[%clk 00:20:09]}
{[%emt 00:00:15]} bxc6 {[%clk 00:20:19]} {[%emt 00:00:06]} 6. Bd3 {[%clk
00:20:12]} {[%emt 00:00:02]} d5 {[%clk 00:20:19]} {[%emt 00:00:06]} 7. e5
{[%clk 00:19:59]} {[%emt 00:00:17]} Nd7 {[%clk 00:20:12]} {[%emt 00:00:13]} 8.
Qe2 {[%clk 00:19:58]} {[%emt 00:00:05]} Nc5 {[%clk 00:19:19]} {[%emt 00:00:58]}
9. O-O {[%clk 00:19:36]} {[%emt 00:00:27]} Be7 {[%clk 00:19:11]} {[%emt
00:00:12]} 10. f4 {[%clk 00:18:29]} {[%emt 00:01:13]} O-O {[%clk 00:17:09]}
{[%emt 00:02:07]} 11. b3 {[%clk 00:18:11]} {[%emt 00:00:23]} f6 {[%clk
00:15:48]} {[%emt 00:01:26]} 12. Bb2 {[%clk 00:17:23]} {[%emt 00:00:52]} fxe5
{[%clk 00:14:38]} {[%emt 00:01:15]} 13. Bxe5 {[%clk 00:17:22]} {[%emt
00:00:07]} Bf6 {[%clk 00:13:37]} {[%emt 00:01:06]} 14. Nd2 {[%clk 00:16:57]}
{[%emt 00:00:30]} Bd7 {[%clk 00:12:38]} {[%emt 00:01:04]} 15. Rae1 {[%clk
00:16:18]} {[%emt 00:00:44]} Re8 {[%clk 00:11:39]} {[%emt 00:01:04]} 16. Qh5
{[%clk 00:15:44]} {[%emt 00:00:38]} Nxd3 {[%clk 00:11:02]} {[%emt 00:00:43]} 17.
cxd3 {[%clk 00:15:48]} Re6 {[%clk 00:07:46]} {[%emt 00:03:21]} 18. d4 {[%clk
00:14:14]} {[%emt 00:01:39]} Be8 {[%clk 00:05:28]} {[%emt 00:02:23]} 19. Qg4
{[%clk 00:13:22]} {[%emt 00:00:57]} Bd7 {[%clk 00:05:14]} {[%emt 00:00:19]} 20.
Qh5 {[%clk 00:12:47]} {[%emt 00:00:39]} Re8 {[%clk 00:04:19]} {[%emt 00:01:01]}
21. Nf3 {[%clk 00:11:56]} {[%emt 00:00:56]} Rf8 {[%clk 00:02:47]} {[%emt
00:01:37]} 22. Bxf6 {[%clk 00:09:50]} {[%emt 00:02:11]} Qxf6 {[%clk 00:02:24]}
{[%emt 00:00:27]} 23. Ne5 {[%clk 00:09:53]} {[%emt 00:00:03]} Bf5 {[%clk
00:02:20]} {[%emt 00:00:08]} 24. g4 {[%clk 00:09:27]} {[%emt 00:00:32]} Be4
{[%clk 00:02:06]} {[%emt 00:00:19]} 25. Re3 {[%clk 00:08:48]} {[%emt 00:00:43]}
Qd6 {[%clk 00:01:32]} {[%emt 00:00:40]} 26. f5 {[%clk 00:07:58]} {[%emt
00:00:55]} c5 {[%clk 00:01:15]} {[%emt 00:00:22]} 27. Rh3 {[%clk 00:08:01]}
{[%emt 00:00:02]} h6 {[%clk 00:01:19]} {[%emt 00:00:02]} 28. g5 {[%clk
00:03:21]} {[%emt 00:04:45]} Bxf5 {[%clk 00:00:57]} {[%emt 00:00:27]} 29. gxh6
{[%clk 00:02:46]} {[%emt 00:00:40]} gxh6 {[%clk 00:00:50]} {[%emt 00:00:12]} 30.
Rxf5 {[%clk 00:02:30]} {[%emt 00:00:21]} cxd4 {[%clk 00:00:38]} {[%emt
00:00:18]} 31. Rf7 {[%clk 00:01:49]} {[%emt 00:00:45]} Qe6 {[%clk 00:00:20]}
{[%emt 00:00:23]} 32. Rg3+ {[%emt 00:00:20]} 1-0